bitfinex/quotes_SOLUSD_20240628
["timestamp","ask_amount","ask_price","bid_price","bid_amount"]
[1719577532683,15.73,146.2,146.14,15.73]
[1719577532998,15.73,146.21,146.15,15.73]
[1719577534411,15.73,146.2,146.14,15.73]
[1719577535836,16.213,146.22,146.13,31.6656]
[1719577536111,15.73,146.16,146.11,0.3187331]
[1719577537121,15.73,146.16,146.11,16.0487331]
[1719577538826,15.73,146.16,146.11,0.3187331]
[1719577539001,15.73,146.12,146.11,0.3187331]
[1719577539202,15.73,146.14,146.11,0.3187331]
[1719577539897,35.73,146.15,146.11,0.3187331]
[1719577540417,15.73,146.14,146.11,0.3187331]
[1719577542793,35.73,146.15,146.11,0.3187331]
[1719577543728,16.1355,146.17,146.11,0.3187331]
[1719577544024,15.73,146.17,146.12,15.73]
[1719577545188,15.73,146.18,146.13,15.73]
[1719577546313,16.6208,146.21,146.13,15.73]
[1719577546503,15.73,146.18,146.13,15.73]
[1719577547211,15.73,146.19,146.13,15.73]
[1719577547417,20.0,146.18,146.14,15.73]
[1719577547805,20.0,146.18,146.13,15.73]
[1719577548001,15.73,146.19,146.13,15.73]
[1719577550008,15.73,146.18,146.12,15.73]
[1719577550603,15.73,146.17,146.11,16.0487331]
[1719577550819,15.73,146.17,146.11,31.7787331]
[1719577551619,61.16,146.2,146.11,0.3187331]
[1719577552195,15.73,146.16,146.11,0.3187331]
[1719577552524,15.73,146.16,146.11,16.0487331]
[1719577552730,15.73,146.16,146.11,0.3187331]
[1719577554112,20.0,146.2,146.12,15.73]
[1719577554336,15.73,146.19,146.13,15.73]
[1719577555638,15.73,146.19,146.14,15.73]
[1719577556135,15.73,146.19,146.13,22.1591]
[1719577556714,15.73,146.18,146.13,6.4291]
[1719577557044,16.6208,146.21,146.12,15.6547]
[1719577557045,15.73,146.17,146.12,15.6547]
[1719577557408,15.73,146.16,146.12,15.6547]
[1719577558037,15.73,146.14,146.11,0.3187331]
[1719577558417,15.73,146.15,146.11,0.3187331]
[1719577558833,15.73,146.14,146.11,0.3187331]
[1719577559342,15.00665865,146.14,146.11,0.3187331]
[1719577560212,57.7808,146.21,146.11,0.3187331]
[1719577560518,15.73,146.17,146.11,16.0487331]
[1719577560722,20.0,146.16,146.12,15.73]
[1719577560922,16.6208,146.21,146.11,0.3187331]
[1719577561235,15.73,146.2,146.14,15.73]
[1719577561432,20.0,146.19,146.14,15.73]
[1719577561830,15.73,146.2,146.14,15.73]
[1719577562146,15.73,146.25,146.16,22.3494]
[1719577562336,6.8365,146.28,146.21,15.73]
[1719577562536,6.8365,146.28,146.22,15.73]
[1719577562850,6.8365,146.28,146.18,15.2733]
[1719577563222,6.8367,146.27,146.18,15.2733]
[1719577563722,20.0,146.26,146.18,15.2733]
[1719577563938,20.0,146.29,146.18,15.2733]
[1719577564130,6.8369,146.27,146.18,15.2733]
[1719577564441,20.0,146.26,146.18,15.2733]
[1719577565421,20.0,146.28,146.18,15.2733]
[1719577565622,6.8371,146.26,146.18,15.2733]
[1719577565943,6.8376,146.25,146.18,15.2733]
[1719577566452,6.8381,146.24,146.18,15.2733]
[1719577567850,6.8377,146.25,146.18,15.2733]
[1719577568038,20.0,146.24,146.18,15.2733]
[1719577570638,20.0,146.25,146.19,1.3677782]
[1719577570825,6.8366,146.28,146.19,1.3677782]
[1719577571027,20.0,146.27,146.19,1.3677782]
[1719577571433,20.0,146.27,146.18,15.2733]
[1719577571634,26.837,146.27,146.18,15.2733]
[1719577571835,20.0,146.27,146.18,15.2733]
[1719577572027,20.0,146.27,146.19,31.5]
[1719577572348,26.8361,146.29,146.19,31.5]
[1719577572646,26.8361,146.29,146.19,51.5]
[1719577573023,6.8362,146.28,146.19,51.5]
[1719577573242,26.8366,146.27,146.19,51.5]
[1719577573555,20.0,146.26,146.19,51.5]
[1719577573728,20.0,146.26,146.19,31.5]
[1719577574043,20.0,146.26,146.19,51.5]
[1719577574345,26.8372,146.26,146.18,15.2733]
[1719577574844,26.8372,146.26,146.18,35.2733]
[1719577575030,20.0,146.26,146.18,35.2733]
[1719577577324,26.8372,146.26,146.18,35.2733]
[1719577577645,6.8376,146.25,146.18,35.2733]
[1719577577855,20.0,146.24,146.18,15.2733]
[1719577579537,20.0,146.25,146.18,15.2733]
[1719577580687,15.647,146.3,146.18,15.2733]
[1719577580843,20.0,146.29,146.18,15.2733]
[1719577581041,15.647,146.3,146.18,15.2733]
[1719577581367,15.647,146.3,146.19,6.3429]
[1719577581659,15.647,146.3,146.19,37.8429]
[1719577582432,20.0,146.29,146.19,37.8429]
[1719577582950,20.0,146.29,146.2,20.0]
[1719577583158,20.0,146.33,146.2,20.0]
[1719577585340,61.16,146.33,146.2,20.0]
[1719577590764,61.16,146.33,146.19,6.3429]
[1719577590974,61.16,146.33,146.2,20.0]
[1719577591469,61.16,146.33,146.21,1.3675891]
[1719577592863,61.16,146.33,146.2,20.0]
[1719577593172,61.16,146.33,146.21,15.6613]
[1719577593867,20.0,146.33,146.22,6.6367]
[1719577597441,61.16,146.33,146.22,6.6367]
[1719577599681,66.99662924,146.33,146.22,6.6367]
[1719577602972,72.66,146.32,146.22,6.6367]
[1719577603153,20.0,146.31,146.22,6.6367]
[1719577603358,61.16,146.31,146.22,6.6367]
[1719577606784,15.75,146.27,146.22,6.6367]
[1719577606949,20.0,146.26,146.22,22.3867]
[1719577607667,20.0,146.27,146.22,22.3867]
[1719577607980,15.75,146.26,146.22,6.6367]
[1719577608185,20.0,146.25,146.22,22.3867]
[1719577608366,35.75,146.27,146.22,22.3867]
[1719577608759,20.0,146.27,146.22,6.6367]
[1719577609074,35.75,146.27,146.22,6.6367]
[1719577610589,20.0,146.27,146.22,22.3867]
[1719577611083,15.75,146.28,146.22,22.3867]
[1719577611379,20.0,146.27,146.22,22.3867]
[1719577611789,35.75,146.27,146.22,6.6367]
[1719577615089,20.0,146.27,146.22,6.6367]
[1719577615292,20.0,146.3,146.22,22.3867]
[1719577615589,15.75,146.29,146.23,15.75]
[1719577615764,20.0,146.28,146.23,15.75]
[1719577616164,20.0,146.28,146.24,15.75]
[1719577616354,20.0,146.29,146.24,15.75]
[1719577617090,9.42740704,146.33,146.24,15.75]
[1719577617276,15.75,146.31,146.25,15.75]
[1719577617472,15.75,146.3,146.24,15.75]
[1719577618476,20.0,146.29,146.24,15.75]
[1719577619980,15.75,146.3,146.24,15.75]
[1719577620172,20.0,146.29,146.24,15.75]
[1719577622586,20.0,146.29,146.23,15.75]
[1719577622587,35.75,146.29,146.23,15.75]
[1719577622786,15.75,146.28,146.22,22.3867]
[1719577623267,20.0,146.27,146.22,22.3867]
[1719577623675,15.75,146.28,146.22,22.3867]
[1719577624075,20.0,146.27,146.22,22.3867]
[1719577624684,20.0,146.27,146.23,15.75]
[1719577624891,20.0,146.28,146.25,15.75]
[1719577625094,20.0,146.29,146.25,15.75]
[1719577626169,20.0,146.3,146.25,15.75]
[1719577626374,35.75,146.3,146.25,15.75]
[1719577626583,35.75,146.3,146.24,15.75]
[1719577627171,15.75,146.29,146.23,15.75]
[1719577627397,20.0,146.28,146.23,15.75]
[1719577627887,35.75,146.28,146.22,22.3867]
[1719577628791,3.5907778,146.33,146.24,15.75]
[1719577628995,15.75,146.31,146.25,15.75]
[1719577629201,20.0,146.3,146.25,15.75]
[1719577630803,20.0,146.3,146.26,15.75]
[1719577633511,20.0,146.31,146.26,15.75]
[1719577635007,20.0,146.31,146.23,15.75]
[1719577635008,20.0,146.31,146.27,15.75]
[1719577635318,47.5439556,146.38,146.3,15.75]
[1719577635319,9.7943778,146.38,146.3,15.75]
[1719577635524,15.75,146.36,146.3,15.75]
[1719577636119,15.75,146.35,146.29,15.75]
[1719577636302,15.75,146.35,146.28,6.5021]
[1719577636508,15.75,146.34,146.28,22.2521]
[1719577637626,15.75,146.33,146.28,6.5021]
[1719577638227,41.16,146.37,146.28,6.5021]
[1719577638418,15.75,146.33,146.28,6.5021]
[1719577640220,41.16,146.37,146.28,22.2521]
[1719577640428,15.75,146.34,146.28,22.2521]
[1719577640758,20.0,146.33,146.28,22.2521]
[1719577641933,20.0,146.33,146.28,6.5021]
[1719577642121,15.75,146.36,146.3,15.75]
[1719577642326,20.0,146.35,146.3,15.75]
[1719577642651,20.0,146.35,146.31,15.75]
[1719577642944,20.0,146.35,146.32,15.75]
[1719577643110,35.75,146.37,146.31,15.75]
[1719577645464,20.0,146.37,146.31,15.75]
[1719577645641,20.0,146.38,146.31,15.75]
[1719577645966,65.9763778,146.43,146.33,15.75]
[1719577646123,15.75,146.39,146.33,15.75]
[1719577646328,15.75,146.39,146.33,17.11661167]
[1719577647435,20.0,146.38,146.33,17.11661167]
[1719577647848,15.75,146.4,146.33,17.11661167]
[1719577648045,62.3856,146.43,146.33,17.11661167]
[1719577648046,15.1146,146.43,146.35,15.75]
[1719577648302,15.1146,146.43,146.33,6.6486]
[1719577648303,15.1146,146.43,146.36,17.11635968]
[1719577648563,41.16,146.45,146.36,15.75]
[1719577648731,15.75,146.44,146.37,31.9531]
[1719577648931,15.75,146.43,146.37,31.9531]
[1719577649147,41.16,146.45,146.37,31.9531]
[1719577649363,15.75,146.43,146.37,31.9531]
[1719577649853,15.75,146.42,146.37,16.2031]
[1719577650054,35.75,146.41,146.37,16.2031]
[1719577650855,15.75,146.4,146.33,22.8831]
[1719577651053,20.0,146.39,146.34,15.75]
[1719577651226,20.0,146.39,146.33,24.249593]
[1719577651426,20.0,146.43,146.34,15.75]
[1719577651643,20.0,146.43,146.35,15.75]
[1719577652046,15.75,146.42,146.36,15.75]
[1719577652358,20.0,146.41,146.36,15.75]
[1719577652563,6.8287,146.44,146.37,15.75]
[1719577652770,15.75,146.43,146.37,15.75]
[1719577653147,6.8287,146.44,146.37,15.75]
[1719577653344,6.8293,146.43,146.37,15.75]
[1719577653668,15.75,146.43,146.37,15.75]
[1719577653859,20.0,146.42,146.37,15.75]
[1719577654239,26.8298,146.42,146.33,22.8831]
[1719577654460,26.8298,146.42,146.37,15.75]
[1719577655667,20.0,146.42,146.37,15.75]
[1719577656051,26.8296,146.42,146.37,15.75]
[1719577656252,26.8296,146.42,146.33,22.8831]
[1719577656446,20.0,146.42,146.37,15.75]
[1719577656646,26.8297,146.42,146.37,15.75]
[1719577656950,35.75,146.42,146.36,15.75]
[1719577657151,20.0,146.42,146.37,15.75]
[1719577657561,26.8296,146.42,146.37,15.75]
[1719577657862,26.8296,146.42,146.36,15.75]
[1719577658260,20.0,146.42,146.36,15.75]
[1719577658454,26.8296,146.42,146.36,15.75]
[1719577658661,20.0,146.42,146.36,15.75]
[1719577660163,20.0,146.42,146.37,15.75]
[1719577660859,20.0,146.42,146.38,15.75]
[1719577662140,26.8292,146.43,146.38,15.75]
[1719577663848,42.5792,146.43,146.38,15.75]
[1719577664845,26.8292,146.43,146.38,15.75]
[1719577665045,20.0,146.43,146.38,15.75]
[1719577665251,35.75,146.44,146.38,15.75]
[1719577665469,26.8287,146.44,146.38,15.75]
[1719577665678,26.8287,146.44,146.33,22.8831]
[1719577665679,15.75,146.4,146.33,22.8831]
[1719577665970,6.8306,146.4,146.35,15.75]
[1719577666270,22.5802,146.41,146.35,15.75]
[1719577666466,20.0,146.4,146.35,15.75]
[1719577666675,26.8307,146.4,146.35,15.75]
[1719577666975,42.5807,146.4,146.35,15.75]
[1719577667341,35.75,146.4,146.35,15.75]
[1719577667544,42.5806,146.4,146.35,15.75]
[1719577667767,26.8306,146.4,146.33,22.8831]
[1719577667949,26.8306,146.4,146.34,15.75]
[1719577668345,20.0,146.4,146.34,15.75]
[1719577668545,20.0,146.4,146.35,15.75]
[1719577668768,20.0,146.4,146.33,22.8831]
[1719577668947,20.0,146.4,146.35,15.75]
[1719577669665,20.0,146.4,146.36,15.75]
[1719577669869,35.75,146.42,146.36,15.75]
[1719577670253,42.5797,146.42,146.36,15.75]
[1719577671174,35.75,146.42,146.36,15.75]
[1719577671375,35.75,146.42,146.33,22.8831]
[1719577671376,20.0,146.42,146.37,15.75]
[1719577671586,22.5793,146.43,146.37,15.75]
[1719577671873,6.8293,146.43,146.37,15.75]
[1719577672175,26.8297,146.42,146.37,15.75]
[1719577672553,20.0,146.42,146.37,15.75]
[1719577673076,35.75,146.42,146.36,15.75]
[1719577673380,42.5797,146.42,146.36,15.75]
[1719577673569,26.8297,146.42,146.37,15.75]
[1719577674393,20.0,146.42,146.37,15.75]
[1719577674561,6.829,146.44,146.37,15.75]
[1719577674753,20.0,146.43,146.38,15.75]
[1719577675077,26.8292,146.43,146.38,15.75]
[1719577675456,42.5792,146.43,146.37,15.75]
[1719577675865,6.8296,146.42,146.33,22.8831]
[1719577676065,20.0,146.41,146.37,15.75]
[1719577676376,26.8302,146.41,146.36,15.75]
[1719577676963,20.0,146.41,146.36,15.75]
[1719577677159,20.0,146.41,146.33,22.8831]
[1719577677475,20.0,146.41,146.36,15.75]
[1719577677770,20.0,146.41,146.38,15.75]
[1719577677974,20.0,146.43,146.38,15.75]
[1719577679476,26.8293,146.43,146.38,15.75]
[1719577680453,20.0,146.43,146.37,15.75]
[1719577680658,15.75,146.42,146.36,15.75]
[1719577680865,20.0,146.41,146.36,15.75]
[1719577681264,20.0,146.41,146.33,22.8831]
[1719577681472,35.75,146.41,146.33,22.8831]
[1719577681674,35.75,146.41,146.35,15.75]
[1719577681866,35.75,146.41,146.33,22.8831]
[1719577682179,20.0,146.41,146.36,15.75]
[1719577682776,20.0,146.41,146.33,22.8831]
[1719577683075,35.75,146.41,146.33,22.8831]
[1719577683377,20.0,146.41,146.34,15.75]
[1719577683572,15.75,146.4,146.33,22.8831]
[1719577683881,20.0,146.41,146.33,22.8831]
[1719577683882,20.0,146.39,146.34,15.75]
[1719577684088,15.75,146.4,146.33,22.8831]
[1719577684383,20.0,146.39,146.33,22.8831]
[1719577684583,20.0,146.39,146.34,15.75]
[1719577686495,20.0,146.39,146.3,90.375804]
[1719577686787,6.3628,146.42,146.36,15.75]
[1719577686788,20.0,146.41,146.36,15.75]
[1719577687160,20.0,146.41,146.37,15.75]
[1719577687371,20.0,146.42,146.37,15.75]
[1719577689069,0.5069869,146.47,146.39,15.75]
[1719577689589,15.75,146.45,146.39,15.75]
[1719577690162,0.5069869,146.47,146.39,15.75]
[1719577690589,15.75,146.45,146.39,15.75]
[1719577690764,20.0,146.44,146.39,15.75]
[1719577690955,35.75,146.44,146.3,27.375804]
[1719577691166,35.75,146.44,146.38,15.75]
[1719577692460,15.75,146.42,146.3,90.375804]
[1719577692658,20.0,146.41,146.36,15.75]
[1719577692890,20.0,146.41,146.37,15.75]
[1719577693060,20.0,146.41,146.38,15.75]
[1719577693265,20.0,146.43,146.3,90.375804]
[1719577693580,20.0,146.43,146.38,15.75]
[1719577693977,20.0,146.44,146.39,15.75]
[1719577694288,0.5069869,146.47,146.4,15.75]
[1719577694468,15.75,146.45,146.3,110.935804]
[1719577694665,20.0,146.44,146.39,15.75]
[1719577694862,20.0,146.44,146.3,90.375804]
[1719577695068,20.0,146.44,146.39,15.75]
[1719577695695,20.0,146.45,146.39,15.75]
[1719577695874,35.75,146.45,146.39,15.75]
[1719577696770,15.75,146.43,146.31,20.0]
[1719577696973,15.75,146.43,146.37,15.75]
[1719577697268,15.75,146.43,146.31,20.0]
[1719577697269,35.75,146.45,146.39,15.75]
[1719577698578,20.0,146.45,146.39,15.75]
[1719577698890,15.75,146.45,146.39,15.75]
[1719577699485,0.5069869,146.47,146.39,15.75]
[1719577699691,16.2569869,146.47,146.41,15.75]
[1719577699872,35.75,146.46,146.4,15.75]
[1719577700068,15.75,146.46,146.4,15.75]
[1719577701708,15.75,146.46,146.39,15.75]
[1719577702170,15.75,146.44,146.31,20.0]
[1719577702365,15.75,146.44,146.38,15.75]
[1719577702590,15.75,146.44,146.31,20.0]
[1719577702790,15.75,146.44,146.38,15.75]
[1719577703571,0.5069869,146.47,146.38,15.75]
[1719577703775,15.75,146.45,146.38,15.75]
[1719577703975,20.0,146.44,146.38,15.75]
[1719577704482,15.75,146.46,146.39,15.75]
[1719577704701,20.0,146.45,146.4,15.75]
[1719577705212,20.0,146.45,146.39,15.75]
[1719577706114,15.75,146.46,146.39,15.75]
[1719577706284,20.0,146.45,146.4,15.75]
[1719577706794,0.5069869,146.47,146.4,15.75]
[1719577706998,16.2569869,146.47,146.41,15.75]
[1719577707179,20.0,146.46,146.4,15.75]
[1719577707513,15.75,146.46,146.4,15.75]
[1719577708013,15.75,146.46,146.39,15.75]
[1719577709303,15.75,146.46,146.31,20.0]
[1719577709492,15.75,146.46,146.39,15.75]
[1719577709797,15.75,146.45,146.39,15.75]
[1719577710313,15.75,146.46,146.39,15.75]
[1719577710690,15.75,146.46,146.4,15.75]
[1719577712090,15.75,146.46,146.31,20.0]
[1719577712293,15.75,146.46,146.4,15.75]
[1719577713400,16.2569869,146.47,146.4,15.75]
[1719577713723,20.0,146.46,146.4,15.75]
[1719577714321,16.2569869,146.47,146.41,15.75]
[1719577714894,0.5069869,146.47,146.31,20.0]
[1719577715120,15.75,146.43,146.37,15.75]
[1719577715614,15.75,146.43,146.31,20.0]
[1719577715615,15.75,146.44,146.38,15.75]
[1719577716118,0.5069869,146.47,146.38,15.75]
[1719577716322,15.75,146.45,146.39,15.75]
[1719577716687,0.5069869,146.47,146.39,15.75]
[1719577716890,0.5069869,146.47,146.41,15.75]
[1719577717126,0.5069869,146.47,146.42,15.75]
[1719577717307,0.5069869,146.47,146.37,15.75]
[1719577717520,0.5069869,146.47,146.43,15.75]
[1719577717700,0.5069869,146.47,146.42,15.75]
[1719577719391,0.5069869,146.47,146.37,63.0]
[1719577719615,0.5069869,146.47,146.42,15.75]
[1719577721291,0.5069869,146.47,146.41,15.75]
[1719577721498,0.5069869,146.47,146.31,1.18895939]
[1719577721721,15.75,146.44,146.37,15.75]
[1719577722102,0.5069869,146.47,146.38,15.75]
[1719577722305,15.75,146.45,146.39,15.75]
[1719577722609,35.75,146.44,146.38,15.75]
[1719577723223,35.75,146.44,146.31,6.67465605]
[1719577723421,35.75,146.44,146.38,15.75]
[1719577723614,20.0,146.44,146.38,15.75]
[1719577723816,20.0,146.44,146.39,15.75]
[1719577724018,15.75,146.45,146.39,15.75]
[1719577724240,20.0,146.44,146.39,15.75]
[1719577725397,0.5069869,146.47,146.4,15.75]
[1719577725706,0.5069869,146.47,146.41,15.75]
[1719577725913,0.5069869,146.47,146.42,15.75]
[1719577726101,0.5069869,146.47,146.37,15.75]
[1719577726326,20.5069869,146.47,146.41,15.75]
[1719577726791,36.2569869,146.47,146.41,15.75]
[1719577728299,20.5069869,146.47,146.32,20.0]
[1719577728500,35.75,146.46,146.4,15.75]
[1719577728703,16.2569869,146.47,146.4,15.75]
[1719577728929,20.0,146.46,146.32,20.0]
[1719577729237,20.0,146.46,146.4,15.75]
[1719577729238,35.75,146.46,146.4,15.75]
[1719577729400,35.75,146.46,146.39,15.75]
[1719577729905,15.75,146.44,146.38,15.75]
[1719577730105,15.75,146.44,146.32,20.0]
[1719577730106,15.75,146.43,146.31,6.67465605]
[1719577730317,15.75,146.43,146.37,15.75]
[1719577731012,15.75,146.44,146.38,15.75]
[1719577731400,20.0,146.46,146.38,15.75]
[1719577731602,0.5069869,146.47,146.38,15.75]
[1719577731603,15.75,146.44,146.38,15.75]
[1719577732812,15.75,146.45,146.39,15.75]
[1719577733018,20.0,146.44,146.39,15.75]
[1719577733542,15.75,146.45,146.39,15.75]
[1719577733829,20.5069869,146.47,146.4,15.75]
[1719577734032,15.75,146.46,146.4,15.75]
[1719577734535,15.75,146.46,146.31,6.67465605]
[1719577734747,15.75,146.46,146.39,15.75]
[1719577735847,20.5069869,146.47,146.4,15.75]
[1719577736028,35.75,146.46,146.39,15.75]
[1719577736342,15.75,146.46,146.39,15.75]
[1719577736540,15.75,146.45,146.39,15.75]
[1719577737735,15.75,146.45,146.38,15.75]
[1719577737918,0.5069869,146.47,146.31,6.67465605]
[1719577737919,35.75,146.44,146.31,6.67465605]
[1719577738119,15.75,146.4,146.35,15.75]
[1719577738420,15.75,146.41,146.35,15.75]
[1719577739444,20.0,146.44,146.36,15.75]
[1719577739627,15.75,146.42,146.36,15.75]
[1719577740350,20.0,146.46,146.32,15.75]
[1719577740540,0.5069869,146.47,146.4,15.75]
[1719577740722,15.75,146.41,146.32,15.75]
[1719577740926,0.5069869,146.47,146.33,20.0]
[1719577741138,15.75,146.45,146.38,15.75]
[1719577741320,15.75,146.46,146.4,15.75]
[1719577742039,20.0,146.45,146.4,15.75]
[1719577742448,35.75,146.45,146.33,20.0]
[1719577742753,35.75,146.45,146.4,15.75]
[1719577742754,20.0,146.45,146.4,15.75]
[1719577744150,20.0,146.45,146.39,15.75]
[1719577744642,20.0,146.45,146.33,20.0]
[1719577744845,0.5069869,146.47,146.33,20.0]
[1719577747358,44.62517812,146.47,146.33,20.0]
[1719577747663,20.0,146.46,146.33,20.0]
[1719577748553,61.6669869,146.47,146.33,20.0]
[1719577749748,0.5069869,146.47,146.33,20.0]
[1719577751232,20.5069869,146.47,146.33,20.0]
[1719577752233,0.5069869,146.47,146.33,20.0]
[1719577755955,0.5069869,146.47,146.33,286.363412]
[1719577758232,0.5069869,146.47,146.33,266.363412]
[1719577759454,0.5069869,146.47,146.34,20.0]
[1719577761542,0.5069869,146.47,146.33,266.363412]
[1719577762454,41.6669869,146.47,146.33,266.363412]
[1719577762648,20.0,146.46,146.33,266.363412]
[1719577763644,61.16,146.46,146.33,266.363412]
[1719577764645,20.0,146.46,146.33,266.363412]
[1719577764843,0.5069869,146.47,146.33,266.363412]
[1719577765051,3.46520087,146.47,146.33,266.363412]
[1719577765343,44.62537664,146.47,146.33,266.363412]
[1719577765549,20.0,146.46,146.33,266.363412]
[1719577766070,61.6669869,146.47,146.34,20.0]
[1719577768341,20.5069869,146.47,146.34,20.0]
[1719577768579,20.0,146.46,146.34,20.0]
[1719577768744,0.5069869,146.47,146.34,20.0]
[1719577769966,0.5069869,146.47,146.34,25.52976115]
[1719577778775,0.5069869,146.47,146.34,5.52976115]
[1719577778950,41.16,146.46,146.33,266.363412]
[1719577779158,61.16,146.45,146.33,266.363412]
[1719577779358,61.6669869,146.47,146.33,266.363412]
[1719577780572,61.6669869,146.47,146.33,271.76894933]
[1719577785265,20.5069869,146.47,146.33,271.76894933]
[1719577785562,20.0,146.46,146.33,271.76894933]
[1719577785767,0.5069869,146.47,146.33,271.76894933]
[1719577794276,0.5069869,146.47,146.34,20.0]
[1719577796165,41.12,146.5,146.34,20.0]
[1719577796374,5.5081182,146.59,146.34,20.0]
[1719577796375,7.17050526,146.61,146.35,66.61564931]
[1719577796597,13.15402017,146.64,146.63,100.0]
[1719577796785,3.578103,146.88,146.72,20.56]
[1719577796981,0.82572,146.91,146.81,10.1298771]
[1719577797203,11.02132246,147.0,146.82,20.0]
[1719577797406,11.02132246,147.0,146.83,8.19120015]
[1719577797582,100.0,146.98,146.84,13.12110185]
[1719577797893,100.0,146.97,146.76,10.1298771]
[1719577798101,100.0,146.98,146.79,27.271601]
[1719577798273,1.86219246,147.0,146.79,27.271601]
[1719577798274,1.86219246,147.0,146.8,33.10971625]
[1719577798482,1.86219246,147.0,146.81,108.19329937]
[1719577798798,1.86219246,147.0,146.82,42.17050112]
[1719577798979,1.86219246,147.0,146.83,28.19329937]
[1719577799171,1.86219246,147.0,146.84,14.82376892]
[1719577799402,100.0,147.08,146.85,28.19329937]
[1719577799403,100.0,147.07,146.85,28.19329937]
[1719577799575,100.0,147.04,146.86,8.19329937]
[1719577799777,100.0,147.04,146.88,10.09448234]
[1719577800105,87.3298616,147.11,146.91,10.09448234]
[1719577800106,100.0,147.08,146.91,10.09448234]
[1719577800273,100.0,147.08,146.85,20.0]
[1719577800274,200.0,147.08,146.92,8.19329937]
[1719577800598,200.0,147.08,146.85,20.0]
[1719577800903,100.0,147.02,146.91,10.09097407]
[1719577801081,200.0,147.04,146.86,10.09097407]
[1719577801285,100.0,147.02,146.85,10.09097407]
[1719577801484,200.0,147.02,146.85,10.09097407]
[1719577801680,100.0,146.99,146.85,10.09097407]
[1719577801905,100.0,146.99,146.8,20.0]
[1719577801906,100.0,146.99,146.84,10.09097407]
[1719577802204,100.0,146.97,146.81,10.09097407]
[1719577802410,100.0,146.97,146.79,27.271601]
[1719577802411,100.0,146.93,146.8,10.09097407]
[1719577802616,100.0,146.93,146.79,27.271601]
[1719577802617,100.0,146.9,146.79,27.271601]
[1719577802782,100.0,146.9,146.56,5.60185725]
[1719577802783,100.0,146.87,146.56,5.60185725]
[1719577802985,20.0,146.92,146.69,10.13623535]
[1719577802986,20.0,146.86,146.69,10.13623535]
[1719577803185,100.0,146.99,146.7,10.13623535]
[1719577803405,100.0,146.99,146.7,51.25623535]
[1719577803608,6.8016,147.03,146.74,141.12]
[1719577803811,6.8016,147.03,146.7,10.13623535]
[1719577803812,100.0,147.09,146.76,100.0]